Workbook

Sheet Лист1
A1: Школа | C1: МБОУ-Большемешинская СОШ | F1: Согласовал: | G1: должность | H1: Директор школы:
A2: Типовое примерное меню приготавливаемых блюд | G2: фамилия | H2: Хамидуллина Сайлан Нагимовна
A3: Возрастная категория | E3: 7-11 лет | G3: дата | H3: 30 | I3: 9 | J3: 2023
H4: день | I4: месяц | J4: год
A5: Неделя | B5: День недели | C5: Прием пищи | D5: Раздел меню | E5: Блюда | F5: Вес блюда, г | G5: Белки | H5: Жиры | I5: Углеводы | J5: Калорийность | K5: № рецептуры | L5: Цена
A6: 1 | B6: 1 | C6: Завтрак | D6: закуска | E6: САЛАТ ИЗ БЕЛОКОЧАННОЙ КАПУСТЫ | F6: 60 | G6: 0.79 | H6: 1.95 | I6: 3.88 | J6: 36.24 | K6: 45
D7: Гор.блюдо | E7: ПЛОВ ИЗ ПТИЦЫ | F7: 150/50 | G7: 14.01 | H7: 13.95 | I7: 36.45 | J7: 298.67 | K7: 291
D8: Напиток | E8: КОМПОТ ИЗ СУХОФРУКТОВ | F8: 200 | G8: 0.66 | H8: 0.09 | I8: 32.01 | J8: 132.8 | K8: 349
D9: хлеб бел. | E9: ХЛЕБ ПШЕНИЧНЫЙ | F9: 30 | G9: 2.28 | H9: 0.24 | I9: 14.76 | J9: 70.2
D10: хлеб черн. | E10: ХЛЕБ СЕЛЬСКИЙ | F10: 20 | G10: 1.6 | H10: 0.3 | I10: 8.02 | J10: 41.2
D13: итого | F13: 510 | G13: =SUM(G6:G12) -> 19.34 | H13: 16.53 | I13: 95.12 | J13: 579.11 | L13: 64.19
A14: =A6 -> 1 | B14: =B6 -> 1 | C14: Обед | D14: закуска
D15: 1 блюдо
D16: 2 блюдо
D17: гарнир
D18: напиток
D19: хлеб бел.
D20: хлеб черн.
D23: итого | F23: =SUM(F14:F22) -> 0 | G23: =SUM(G14:G22) -> 0 | H23: 0 | I23: 0 | J23: 0 | L23: =SUM(L14:L22) -> 0
A24: =A6 -> 1 | B24: =B6 -> 1 | C24: Итого за день: | F24: =F13+F23 -> 510 | G24: =G13+G23 -> 19.34 | H24: =H13+H23 -> 16.53 | I24: =I13+I23 -> 95.12 | J24: =J13+J23 -> 579.11 | L24: =L13+L23 -> 64.19
A25: 1 | B25: 2 | C25: Завтрак | D25: закуска | E25: ФРУКТЫ | F25: 114 | G25: 0.4 | H25: 0.4 | I25: 9.8 | J25: 47 | K25: 338
D26: закуска | E26: САЛАТ ИЗ СВЕКЛЫ ОТВАРНОЙ | F26: 60 | G26: 0.84 | H26: 3.61 | I26: 4.96 | J26: 55.68 | K26: 52
D27: Гор.блюдо | E27: ТЕФТЕЛИ ГОВЯЖЬИ С СОУСОМ | F27: 60/30 | G27: 7.98 | H27: 5.86 | I27: 9.74 | J27: 110.02 | K27: 279
D28: Гарнир | E28: МАКАРОННЫЕ ИЗДЕЛИЯ ОТВАРНЫЕ С МАСЛОМ | F28: 150/5 | G28: 5.73 | H28: 6.08 | I28: 31.98 | J28: 205.5 | K28: 203
D29: Напиток | E29: ЧАЙ ЧЕРНЫЙ С САХАРОМ | F29: 200/8 | G29: 0.07 | H29: 0.02 | I29: 8 | J29: 60 | K29: 376
D30: хлеб бел. | E30: ХЛЕБ ПШЕНИЧНЫЙ | F30: 30 | G30: 2.28 | H30: 0.24 | I30: 14.76 | J30: 70.2
D31: хлеб черн. | E31: ХЛЕБ СЕЛЬСКИЙ | F31: 20 | G31: 1.6 | H31: 0.3 | I31: 8.02 | J31: 41.2
D32: итого | F32: 663 | G32: =SUM(G25:G31) -> 18.9 | H32: 16.51 | I32: 87.26 | J32: 589.6 | L32: 64.19
A33: =A25 -> 1 | B33: =B25 -> 2 | C33: Обед | D33: закуска
D34: 1 блюдо
D35: 2 блюдо
D36: гарнир
D37: напиток
D38: хлеб бел.
D39: хлеб черн.
D42: итого | F42: =SUM(F33:F41) -> 0 | G42: =SUM(G33:G41) -> 0 | H42: =SUM(H33:H41) -> 0 | I42: =SUM(I33:I41) -> 0 | J42: =SUM(J33:J41) -> 0 | L42: 0
A43: =A25 -> 1 | B43: =B25 -> 2 | C43: Итого за день: | F43: =F32+F42 -> 663 | G43: =G32+G42 -> 18.9 | H43: =H32+H42 -> 16.51 | I43: =I32+I42 -> 87.26 | J43: =J32+J42 -> 589.6 | L43: 64.19
A44: 1 | B44: 3 | C44: Завтрак | E44: МАСЛО СЛИВОЧНОЕ | F44: 10 | G44: 0.08 | H44: 7.25 | I44: 0.13 | J44: 66 | K44: 14
D45: закуска | E45: САЛАТ ИЗ МОРКОВИ | F45: 60 | G45: 0.74 | H45: 0.06 | I45: 6.89 | J45: 49.02 | K45: 62
D46: Гор.блюдо | E46: БИТОЧКИ РЫБНЫЕ С СОУСОМ | F46: 60/30 | G46: 8.34 | H46: 7.03 | I46: 11.96 | J46: 144 | K46: 234
D47: Гарнир | E47: КАША РАССЫПЧАТАЯ ГРЕЧНЕВАЯ С МАСЛОМ | F47: 150/5 | G47: 3.66 | H47: 7.54 | I47: 38.06 | J47: 234.44 | K47: 171
D48: Напиток | E48: ЧАЙ ЧЕРНЫЙ С САХАРОМ | F48: 200/8 | G48: 0.07 | H48: 0.02 | I48: 8 | J48: 60 | K48: 376
D49: хлеб бел. | E49: ХЛЕБ ПШЕНИЧНЫЙ | F49: 30 | G49: 2.28 | H49: 0.24 | I49: 14.76 | J49: 70.2
D50: хлеб черн. | E50: ХЛЕБ СЕЛЬСКИЙ | F50: 20 | G50: 1.6 | H50: 0.3 | I50: 8.02 | J50: 41.2
D51: итого | F51: 568 | G51: =SUM(G44:G50) -> 16.77 | H51: 22.44 | I51: 87.82 | J51: 664.86 | L51: 64.19
A52: =A44 -> 1 | B52: =B44 -> 3 | C52: Обед | D52: закуска
D53: 1 блюдо
D54: 2 блюдо
D55: гарнир
D56: напиток
D57: хлеб бел.
D58: хлеб черн.
D61: итого | F61: =SUM(F52:F60) -> 0 | G61: =SUM(G52:G60) -> 0 | H61: =SUM(H52:H60) -> 0 | I61: =SUM(I52:I60) -> 0 | J61: =SUM(J52:J60) -> 0 | L61: 0
A62: =A44 -> 1 | B62: =B44 -> 3 | C62: Итого за день: | F62: =F51+F61 -> 568 | G62: =G51+G61 -> 16.77 | H62: =H51+H61 -> 22.44 | I62: =I51+I61 -> 87.82 | J62: =J51+J61 -> 664.86 | L62: 64.19
A63: 1 | B63: 4 | C63: Завтрак | E63: ФРУКТЫ | F63: 114 | G63: 0.4 | H63: 0.4 | I63: 9.8 | J63: 47 | K63: 338
D64: закуска | E64: ВИНЕГРЕТ ОВОЩНОЙ | F64: 60 | G64: 0.84 | H64: 6.02 | I64: 4.37 | J64: 75.06 | K64: 67
D65: Гор.блюдо | E65: СОСИСКИ ГОВЯЖЬИ ХАЛЯЛЬ ОТВАРНЫЕ С СОУСОМ | F65: 50/40 | G65: 5.92 | H65: 13.4 | I65: 3.8 | J65: 145.6 | K65: 243
D66: Гарнир | E66: КАША РАССЫПЧАТАЯ ПШЕННАЯ С МАСЛОМ | F66: 150/50 | G66: 6.84 | H66: 9.19 | I66: 39.23 | J66: 267 | K66: 171
D67: Напиток | E67: ЧАЙ ЧЕРНЫЙ С САХАРОМ | F67: 200/8 | G67: 0.07 | H67: 0.02 | I67: 8 | J67: 60 | K67: 376
D68: хлеб бел. | E68: ХЛЕБ ПШЕНИЧНЫЙ | F68: 30 | G68: 2.28 | H68: 0.24 | I68: 14.76 | J68: 70.2
D69: хлеб черн. | E69: ХЛЕБ СЕЛЬСКИЙ | F69: 20 | G69: 1.6 | H69: 0.3 | I69: 8.02 | J69: 41.2
D70: итого | F70: 663 | G70: =SUM(G63:G69) -> 17.95 | H70: =SUM(H63:H69) -> 29.57 | I70: 87.98 | J70: 706.06 | L70: 64.19
A71: =A63 -> 1 | B71: =B63 -> 4 | C71: Обед | D71: закуска
D72: 1 блюдо
D73: 2 блюдо
D74: гарнир
D75: напиток
D76: хлеб бел.
D77: хлеб черн.
D80: итого | F80: =SUM(F71:F79) -> 0 | G80: =SUM(G71:G79) -> 0 | H80: =SUM(H71:H79) -> 0 | I80: =SUM(I71:I79) -> 0 | J80: =SUM(J71:J79) -> 0 | L80: 0
A81: =A63 -> 1 | B81: =B63 -> 4 | C81: Итого за день: | F81: =F70+F80 -> 663 | G81: =G70+G80 -> 17.95 | H81: =H70+H80 -> 29.57 | I81: =I70+I80 -> 87.98 | J81: =J70+J80 -> 706.06 | L81: 64.19
A82: 1 | B82: 5 | C82: Завтрак | E82: СЫР ПОРЦИЯМИ | F82: 10 | G82: 2.32 | H82: 2.95 | I82: - | J82: 36 | K82: 15
D83: закуска | E83: САЛАТ ИЗ БЕЛОКОЧАННОЙ КАПУСТЫ | F83: 60 | G83: 0.79 | H83: 1.95 | I83: 3.88 | J83: 36.24 | K83: 45
D84: Гор.блюдо | E84: ТЕФТЕЛИ РЫБНЫЕ С СОУСОМ | F84: 60/30 | G84: 7.93 | H84: 7.73 | I84: 11.29 | J84: 146.4 | K84: 239
D85: Гарнир | E85: МАКАРОННЫЕ ИЗДЕЛИЯ ОТВАРНЫЕ С МАСЛОМ | F85: 150/5 | G85: 5.73 | H85: 6.08 | I85: 31.98 | J85: 205.5 | K85: 203
D86: Напиток | E86: КОМПОТ ИЗ СУХОФРУКТОВ | F86: 200 | G86: 0.66 | H86: 0.09 | I86: 32.01 | J86: 132.8 | K86: 349
D87: хлеб бел. | E87: ХЛЕБ ПШЕНИЧНЫЙ | F87: 30 | G87: 2.28 | H87: 0.24 | I87: 14.76 | J87: 70.2
D88: хлеб черн. | E88: ХЛЕБ СЕЛЬСКИЙ | F88: 20 | G88: 1.6 | H88: 0.3 | I88: 8.02 | J88: 41.2
D89: итого | F89: 555 | G89: =SUM(G82:G88) -> 21.31 | H89: =SUM(H82:H88) -> 19.34 | I89: 101.94 | J89: 668.34 | L89: 64.19
A90: =A82 -> 1 | B90: =B82 -> 5 | C90: Обед | D90: закуска
D91: 1 блюдо
D92: 2 блюдо
D93: гарнир
D94: напиток
D95: хлеб бел.
D96: хлеб черн.
D99: итого | F99: =SUM(F90:F98) -> 0 | G99: =SUM(G90:G98) -> 0 | H99: =SUM(H90:H98) -> 0 | I99: =SUM(I90:I98) -> 0 | J99: =SUM(J90:J98) -> 0 | L99: 0
A100: =A82 -> 1 | B100: =B82 -> 5 | C100: Итого за день: | F100: =F89+F99 -> 555 | G100: =G89+G99 -> 21.31 | H100: =H89+H99 -> 19.34 | I100: =I89+I99 -> 101.94 | J100: =J89+J99 -> 668.34 | L100: 64.19
A101: 1 | B101: 6 | C101: Завтрак | D101: закуска | E101: САЛАТ ИЗ СВЕКЛЫ ОТВАРНОЙ | F101: 60 | G101: 0.84 | H101: 3.61 | I101: 4.96 | J101: 55.68 | K101: 52
D102: Гор.блюдо | E102: ПТИЦА ТУШЕНАЯ В СОУСЕ | F102: 50/50 | G102: 11.94 | H102: 10.12 | I102: 3.51 | J102: 153 | K102: 290
D103: Гарнир | E103: КАША ПШЕНИЧНАЯ РАССЫПЧАТАЯ С МАСЛОМ | F103: 150/5 | G103: 6.63 | H103: 7.76 | I103: 38.81 | J103: 251.88 | K103: 171
D104: Напиток | E104: ЧАЙ ЧЕРНЫЙ С САХАРОМ | F104: 200/8 | G104: 0.07 | H104: 0.02 | I104: 8 | J104: 60 | K104: 376
D105: хлеб бел. | E105: ХЛЕБ ПШЕНИЧНЫЙ | F105: 30 | G105: 2.28 | H105: 0.24 | I105: 14.76 | J105: 70.2
D106: хлеб черн. | E106: ХЛЕБ СЕЛЬСКИЙ | F106: 20 | G106: 1.6 | H106: 0.3 | I106: 8.02 | J106: 41.2
D108: итого | F108: 573 | G108: =SUM(G101:G107) -> 23.36 | H108: =SUM(H101:H107) -> 22.05 | I108: 78.06 | J108: 631.96 | L108: 64.19
A109: =A101 -> 1 | B109: 6 | C109: Обед | D109: закуска
D110: 1 блюдо
D111: 2 блюдо
D112: гарнир
D113: напиток
D114: хлеб бел.
D115: хлеб черн.
D118: итого | F118: =SUM(F109:F117) -> 0 | G118: =SUM(G109:G117) -> 0 | H118: 0 | I118: 0 | J118: 0 | L118: =SUM(L109:L117) -> 0
A119: =A101 -> 1 | B119: =B101 -> 6 | C119: Итого за день: | F119: =F108+F118 -> 573 | G119: =G108+G118 -> 23.36 | H119: 22.05 | I119: 78.06 | J119: 631.96 | L119: =L108+L118 -> 64.19
A120: 2 | B120: 1 | C120: Завтрак | D120: закуска | E120: САЛАТ ИЗ МОРКОВИ | F120: 60 | G120: 0.74 | H120: 0.06 | I120: 6.89 | J120: 49.02 | K120: 62
D121: Гор.блюдо | E121: СОСИСКИ ГОВЯЖЬИ ХАЛЯЛЬ ОТВАРНЫЕ С СОУСОМ | F121: 50/40 | G121: 5.92 | H121: 13.4 | I121: 3.8 | J121: 145.6 | K121: 243
D122: Гарнир | E122: КАША РАССЫПЧАТАЯ ГРЕЧНЕВАЯ С МАСЛОМ | F122: 150/5 | G122: 3.66 | H122: 7.54 | I122: 38.06 | J122: 234.44 | K122: 171
D123: Напиток | E123: КОМПОТ ИЗ СУХОФРУКТОВ | F123: 200 | G123: 0.66 | H123: 0.09 | I123: 32.01 | J123: 132.8 | K123: 349
D124: хлеб бел. | E124: ХЛЕБ ПШЕНИЧНЫЙ | F124: 30 | G124: 2.28 | H124: 0.24 | I124: 14.76 | J124: 70.2
D125: хлеб черн. | E125: ХЛЕБ СЕЛЬСКИЙ | F125: 20 | G125: 1.6 | H125: 0.3 | I125: 8.02 | J125: 41.2
D127: итого | F127: 550 | G127: =SUM(G120:G126) -> 14.86 | H127: 21.63 | I127: 103.54 | J127: 673.26 | L127: 64.19
A128: =A120 -> 2 | B128: =B120 -> 1 | C128: Обед | D128: закуска
D129: 1 блюдо
D130: 2 блюдо
D131: гарнир
D132: напиток
D133: хлеб бел.
D134: хлеб черн.
D137: итого | F137: =SUM(F128:F136) -> 0 | G137: =SUM(G128:G136) -> 0 | H137: 0 | I137: 0 | J137: 0 | L137: =SUM(L128:L136) -> 0
A138: =A120 -> 2 | B138: =B120 -> 1 | C138: Итого за день: | F138: =F127+F137 -> 550 | G138: =G127+G137 -> 14.86 | H138: =H127+H137 -> 21.63 | I138: =I127+I137 -> 103.54 | J138: =J127+J137 -> 673.26 | L138: 64.19
A139: 2 | B139: 2 | C139: Завтрак | D139: закуска | E139: СЫР ПОРЦИЯМИ | F139: 10 | G139: 2.32 | H139: 2.95 | I139: 0 | J139: 36 | K139: 15
E140: ВИНЕГРЕТ ОВОЩНОЙ | F140: 60 | G140: 0.84 | H140: 6.02 | I140: 4.37 | J140: 75.06 | K140: 67
D141: Гор.блюдо | E141: БИТОЧКИ РЫБНЫЕ С СОУСОМ | F141: 60/30 | G141: 8.34 | H141: 7.03 | I141: 11.96 | J141: 144 | K141: 234
D142: Гарнир | E142: МАКАРОННЫЕ ИЗДЕЛИЯ ОТВАРНЫЕ С МАСЛОМ | F142: 150/5 | G142: 5.73 | H142: 6.08 | I142: 31.98 | J142: 205.5 | K142: 203
D143: Напиток | E143: ЧАЙ ЧЕРНЫЙ С САХАРОМ | F143: 200/8 | G143: 0.07 | H143: 0.02 | I143: 8 | J143: 60 | K143: 376
D144: хлеб бел. | E144: ХЛЕБ ПШЕНИЧНЫЙ | F144: 30 | G144: 2.28 | H144: 0.24 | I144: 14.76 | J144: 70.2
D145: хлеб черн. | E145: ХЛЕБ СЕЛЬСКИЙ | F145: 20 | G145: 1.6 | H145: 0.3 | I145: 8.02 | J145: 41.2
D146: итого | F146: 563 | G146: =SUM(G139:G145) -> 21.18 | H146: 22.64 | I146: 79.09 | J146: 631.96 | L146: 64.19
A147: =A139 -> 2 | B147: =B139 -> 2 | C147: Обед | D147: закуска
D148: 1 блюдо
D149: 2 блюдо
D150: гарнир
D151: напиток
D152: хлеб бел.
D153: хлеб черн.
D156: итого | F156: =SUM(F147:F155) -> 0 | G156: =SUM(G147:G155) -> 0 | H156: 0 | I156: 0 | J156: 0 | L156: =SUM(L147:L155) -> 0
A157: =A139 -> 2 | B157: =B139 -> 2 | C157: Итого за день: | F157: =F146+F156 -> 563 | G157: =G146+G156 -> 21.18 | H157: =H146+H156 -> 22.64 | I157: =I146+I156 -> 79.09 | J157: =J146+J156 -> 631.96 | L157: 64.19
A158: 2 | B158: 3 | C158: Завтрак | E158: ФРУКТЫ | F158: 100 | G158: 0.4 | H158: 0.4 | I158: 9.8 | J158: 47 | K158: 338
D159: закуска | E159: САЛАТ ИЗ БЕЛОКОЧАННОЙ КАПУСТЫ | F159: 60 | G159: 0.79 | H159: 1.95 | I159: 3.88 | J159: 36.24 | K159: 45
D160: Гор.блюдо | E160: ПЛОВ ИЗ ПТИЦЫ | F160: 150/50 | G160: 14.01 | H160: 13.95 | I160: 36.45 | J160: 298.67 | K160: 291
D161: Напиток | E161: ЧАЙ ЧЕРНЫЙ С САХАРОМ | F161: 200/8 | G161: 0.07 | H161: 0.02 | I161: 8 | J161: 60 | K161: 376
D162: хлеб бел. | E162: ХЛЕБ ПШЕНИЧНЫЙ | F162: 30 | G162: 2.28 | H162: 0.24 | I162: 14.76 | J162: 70.2
D163: хлеб черн. | E163: ХЛЕБ СЕЛЬСКИЙ | F163: 20 | G163: 1.6 | H163: 0.3 | I163: 8.02 | J163: 41.2
D165: итого | F165: 618 | G165: =SUM(G158:G164) -> 19.15 | H165: 16.86 | I165: 80.91 | J165: 553.31 | L165: 64.19
A166: =A158 -> 2 | B166: =B158 -> 3 | C166: Обед | D166: закуска
D167: 1 блюдо
D168: 2 блюдо
D169: гарнир
D170: напиток
D171: хлеб бел.
D172: хлеб черн.
D175: итого | F175: =SUM(F166:F174) -> 0 | G175: =SUM(G166:G174) -> 0 | H175: 0 | I175: 0 | J175: 0 | L175: =SUM(L166:L174) -> 0
A176: =A158 -> 2 | B176: =B158 -> 3 | C176: Итого за день: | F176: =F165+F175 -> 618 | G176: =G165+G175 -> 19.15 | H176: =H165+H175 -> 16.86 | I176: =I165+I175 -> 80.91 | J176: =J165+J175 -> 553.31 | L176: 64.19
A177: 2 | B177: 4 | C177: Завтрак | D177: закуска | E177: ФРУКТЫ | F177: 100 | G177: 0.4 | H177: 0.4 | I177: 9.8 | J177: 47 | K177: 338
E178: САЛАТ ИЗ СВЕКЛЫ ОТВАРНОЙ | F178: 60 | G178: 0.84 | H178: 3.61 | I178: 4.96 | J178: 55.68 | K178: 52
D179: Гор.блюдо | E179: РАГУ ИЗ ПТИЦЫ | F179: 150/5 | G179: 14.4 | H179: 12.17 | I179: 37.37 | J179: 237.71 | K179: 289
D180: Напиток | E180: КОМПОТ ИЗ СУХОФРУКТОВ | F180: 200 | G180: 0.66 | H180: 0.09 | I180: 32.01 | J180: 132.8 | K180: 349
D181: хлеб бел. | E181: ХЛЕБ ПШЕНИЧНЫЙ | F181: 30 | G181: 2.28 | H181: 0.24 | I181: 14.76 | J181: 70.2
D182: хлеб черн. | E182: ХЛЕБ СЕЛЬСКИЙ | F182: 20 | G182: 1.6 | H182: 0.3 | I182: 8.02 | J182: 41.2
D184: итого | F184: 610 | G184: =SUM(G177:G183) -> 20.18 | H184: 16.81 | I184: 106.92 | J184: 584.59 | L184: 64.19
A185: =A177 -> 2 | B185: =B177 -> 4 | C185: Обед | D185: закуска
D186: 1 блюдо
D187: 2 блюдо
D188: гарнир
D189: напиток
D190: хлеб бел.
D191: хлеб черн.
D194: итого | F194: =SUM(F185:F193) -> 0 | G194: =SUM(G185:G193) -> 0 | H194: 0 | I194: 0 | J194: 0 | L194: =SUM(L185:L193) -> 0
A195: =A177 -> 2 | B195: =B177 -> 4 | C195: Итого за день: | F195: =F184+F194 -> 610 | G195: =G184+G194 -> 20.18 | H195: =H184+H194 -> 16.81 | I195: =I184+I194 -> 106.92 | J195: =J184+J194 -> 584.59 | L195: 64.19
A196: 2 | B196: 5 | C196: Завтрак | E196: СЫР ПОРЦИЯМИ | F196: 10 | G196: 2.32 | H196: 2.95 | I196: - | J196: 36
D197: закуска | E197: САЛАТ ИЗ МОРКОВИ | F197: 60 | G197: 0.74 | H197: 0.06 | I197: 6.89 | J197: 49.02 | K197: 62
D198: Гор.блюдо | E198: ТЕФТЕЛИ РЫБНЫЕ С СОУСОМ | F198: 60/30 | G198: 7.93 | H198: 7.73 | I198: 11.29 | J198: 146.4 | K198: 239
D199: Гарнир | E199: МАКАРОННЫЕ ИЗДЕЛИЯ ОТВАРНЫЕ С МАСЛОМ | F199: 150/5 | G199: 5.73 | H199: 6.08 | I199: 31.98 | J199: 205.5 | K199: 203
D200: Напиток | E200: ЧАЙ ЧЕРНЫЙ С САХАРОМ | F200: 200/8 | G200: 0.07 | H200: 0.02 | I200: 8 | J200: 60 | K200: 376
D201: хлеб бел. | E201: ХЛЕБ ПШЕНИЧНЫЙ | F201: 30 | G201: 2.28 | H201: 0.24 | I201: 14.76 | J201: 70.2
D202: хлеб черн. | E202: ХЛЕБ СЕЛЬСКИЙ | F202: 20 | G202: 1.6 | H202: 0.3 | I202: 8.02 | J202: 41.2
D203: итого | F203: 573 | G203: =SUM(G196:G202) -> 20.67 | H203: 17.38 | I203: 80.94 | J203: 608.32 | L203: 64.19
A204: =A196 -> 2 | B204: =B196 -> 5 | C204: Обед | D204: закуска
D205: 1 блюдо
D206: 2 блюдо
D207: гарнир
D208: напиток
D209: хлеб бел.
D210: хлеб черн.
D213: итого | F213: =SUM(F204:F212) -> 0 | G213: =SUM(G204:G212) -> 0 | H213: 0 | I213: 0 | J213: 0 | L213: =SUM(L204:L212) -> 0
A214: =A196 -> 2 | B214: =B196 -> 5 | C214: Итого за день: | F214: =F203+F213 -> 573 | G214: =G203+G213 -> 20.67 | H214: =H203+H213 -> 17.38 | I214: =I203+I213 -> 80.94 | J214: =J203+J213 -> 608.32 | L214: 64.19
A215: 2 | B215: 6 | C215: Завтрак | D215: закуска | E215: САЛАТ ИЗ БЕЛОКОЧАННОЙ КАПУСТЫ | F215: 60 | G215: 0.79 | H215: 1.95 | I215: 3.88 | J215: 36.24 | K215: 45
D216: Гор.блюдо | E216: ПТИЦА ТУШЕНАЯ В СОУСЕ | F216: 50/50 | G216: 11.94 | H216: 10.12 | I216: 3.51 | J216: 153 | K216: 290
D217: Гарнир | E217: РИС ОТВАРНОЙ | F217: 150 | G217: 3.65 | H217: 5.37 | I217: 36.68 | J217: 209.7 | K217: 304
D218: Напиток | E218: ЧАЙ ЧЕРНЫЙ С САХАРОМ | F218: 200/8 | G218: 0.07 | H218: 0.02 | I218: 8 | J218: 60 | K218: 376
D219: хлеб бел. | E219: ХЛЕБ ПШЕНИЧНЫЙ | F219: 30 | G219: 2.28 | H219: 0.24 | I219: 14.76 | J219: 70.2
D220: хлеб черн. | E220: ХЛЕБ СЕЛЬСКИЙ | F220: 20 | G220: 1.6 | H220: 0.3 | I220: 8.02 | J220: 41.2
D222: итого | F222: 568 | G222: =SUM(G215:G221) -> 20.33 | H222: 18 | I222: 74.85 | J222: 570.34 | L222: 64.19
A223: =A215 -> 2 | B223: 6 | C223: Обед | D223: закуска
D224: 1 блюдо
D225: 2 блюдо
D226: гарнир
D227: напиток
D228: хлеб бел.
D229: хлеб черн.
... 3 more rows
